[Event "Early-Titled-Tuesday-Blitz-February-27-2024"]
[Site "Chess.com"]
[Date "2024.02.27"]
[Round "8"]
[White "HATilay"]
[Black "Gabrielian_Artur"]
[Result "1/2-1/2"]
[WhiteElo "2636"]
[BlackElo "2787"]
[TimeControl "180+1"]
[EndTime "9:29:11 PST"]
[Termination "Game drawn by repetition"]

1. e4 {[%clk 0:03:00.9]} 1... c5 {[%clk 0:02:59.4]} 2. Nf3 {[%clk 0:03:01.1]}
2... d6 {[%clk 0:02:59.9]} 3. d4 {[%clk 0:03:00.8]} 3... cxd4 {[%clk 0:03:00.2]}
4. Nxd4 {[%clk 0:03:01.7]} 4... Nf6 {[%clk 0:03:00.6]} 5. Nc3 {[%clk 0:03:02.4]}
5... Nc6 {[%clk 0:03:00.9]} 6. Bg5 {[%clk 0:02:50.7]} 6... Bd7 {[%clk
0:03:00.8]} 7. Qd2 {[%clk 0:02:47.7]} 7... Rc8 {[%clk 0:03:00.1]} 8. Bxf6 {[%clk
0:02:46]} 8... gxf6 {[%clk 0:02:59.9]} 9. f4 {[%clk 0:02:01.4]} 9... Nxd4 {[%clk
0:02:53.8]} 10. Qxd4 {[%clk 0:02:01.1]} 10... Qa5 {[%clk 0:02:53.7]} 11. O-O-O
{[%clk 0:01:56.7]} 11... Qc5 {[%clk 0:02:43.8]} 12. Qd3 {[%clk 0:01:49.3]} 12...
f5 {[%clk 0:02:37]} 13. Nd5 {[%clk 0:01:29.2]} 13... fxe4 {[%clk 0:01:35.2]} 14.
Qxe4 {[%clk 0:01:28.8]} 14... Bc6 {[%clk 0:01:18]} 15. f5 {[%clk 0:00:54.4]}
15... Bh6+ {[%clk 0:00:52.2]} 16. Kb1 {[%clk 0:00:54.3]} 16... Bxd5 {[%clk
0:00:52.3]} 17. Rxd5 {[%clk 0:00:54.3]} 17... Qe3 {[%clk 0:00:52.2]} 18. Bb5+
{[%clk 0:00:54.3]} 18... Kf8 {[%clk 0:00:51.9]} 19. Qxe3 {[%clk 0:00:35.6]}
19... Bxe3 {[%clk 0:00:51.4]} 20. f6 {[%clk 0:00:35.9]} 20... Rc5 {[%clk
0:00:43.6]} 21. fxe7+ {[%clk 0:00:25.9]} 21... Kxe7 {[%clk 0:00:44.5]} 22. Rxc5
{[%clk 0:00:20.6]} 22... Bxc5 {[%clk 0:00:44.2]} 23. Re1+ {[%clk 0:00:21.2]}
23... Kd8 {[%clk 0:00:42.6]} 24. Bc4 {[%clk 0:00:21.2]} 24... Re8 {[%clk
0:00:37.3]} 25. Rf1 {[%clk 0:00:21.5]} 25... f6 {[%clk 0:00:36.2]} 26. a3 {[%clk
0:00:20.5]} 26... Ke7 {[%clk 0:00:31]} 27. Bd5 {[%clk 0:00:19.1]} 27... Rb8
{[%clk 0:00:15.8]} 28. Re1+ {[%clk 0:00:18.6]} 28... Kf8 {[%clk 0:00:14.2]} 29.
Re6 {[%clk 0:00:18.9]} 29... Bd4 {[%clk 0:00:13.7]} 30. Rxd6 {[%clk 0:00:18.7]}
30... Be5 {[%clk 0:00:13.5]} 31. Rd7 {[%clk 0:00:18.5]} 31... Bxh2 {[%clk
0:00:10.3]} 32. Rxh7 {[%clk 0:00:18]} 32... Be5 {[%clk 0:00:10.5]} 33. Rxb7
{[%clk 0:00:18.1]} 33... Rxb7 {[%clk 0:00:09.9]} 34. Bxb7 {[%clk 0:00:19]} 34...
Ke7 {[%clk 0:00:10.4]} 35. Be4 {[%clk 0:00:19.3]} 35... Kd6 {[%clk 0:00:10.5]}
36. c3 {[%clk 0:00:19.8]} 36... a5 {[%clk 0:00:09.2]} 37. a4 {[%clk 0:00:19.4]}
37... Kc5 {[%clk 0:00:08.9]} 38. Kc2 {[%clk 0:00:19.5]} 38... Bf4 {[%clk
0:00:09.2]} 39. g4 {[%clk 0:00:18.4]} 39... Bg5 {[%clk 0:00:09.2]} 40. Bf5
{[%clk 0:00:18.8]} 40... Bf4 {[%clk 0:00:07.8]} 41. Kd3 {[%clk 0:00:19]} 41...
Bc1 {[%clk 0:00:06.6]} 42. b3 {[%clk 0:00:19]} 42... Bg5 {[%clk 0:00:07]} 43.
Bd7 {[%clk 0:00:15.5]} 43... Bf4 {[%clk 0:00:06.7]} 44. Bb5 {[%clk 0:00:15.9]}
44... Bg5 {[%clk 0:00:06.9]} 45. Kc2 {[%clk 0:00:16.1]} 45... Bf4 {[%clk
0:00:07]} 46. Kd3 {[%clk 0:00:15.9]} 46... Bg5 {[%clk 0:00:07.2]} 47. Bc4 {[%clk
0:00:16.3]} 47... Bf4 {[%clk 0:00:07.4]} 48. Bf7 {[%clk 0:00:17]} 48... Bg5
{[%clk 0:00:07.5]} 49. Ke4 {[%clk 0:00:17.3]} 49... Bd2 {[%clk 0:00:07.2]} 50.
Kd3 {[%clk 0:00:14]} 50... Bg5 {[%clk 0:00:07.4]} 51. Bg6 {[%clk 0:00:14.1]}
51... Bh6 {[%clk 0:00:07.6]} 52. Bh7 {[%clk 0:00:14.5]} 52... Bg5 {[%clk
0:00:07.9]} 53. Kc2 {[%clk 0:00:15]} 53... Bf4 {[%clk 0:00:08]} 54. Kb2 {[%clk
0:00:15.5]} 54... Bg5 {[%clk 0:00:08.3]} 55. Be4 {[%clk 0:00:16]} 55... Bf4
{[%clk 0:00:08.5]} 56. Bd3 {[%clk 0:00:16.3]} 56... Bg5 {[%clk 0:00:08.6]} 57.
Ka3 {[%clk 0:00:17]} 57... Bc1+ {[%clk 0:00:08.6]} 58. Ka2 {[%clk 0:00:17.6]}
58... Bg5 {[%clk 0:00:09.2]} 59. Kb2 {[%clk 0:00:09.7]} 59... Bf4 {[%clk
0:00:09.4]} 60. Bf5 {[%clk 0:00:09.9]} 60... Bg5 {[%clk 0:00:09.7]} 61. Bd7
{[%clk 0:00:10.5]} 61... Bf4 {[%clk 0:00:10]} 62. Be8 {[%clk 0:00:10.7]} 62...
Bg5 {[%clk 0:00:10.3]} 63. Bg6 {[%clk 0:00:09.6]} 63... Bf4 {[%clk 0:00:10.5]}
64. Bd3 {[%clk 0:00:09.8]} 64... Bg5 {[%clk 0:00:10.9]} 65. Bf1 {[%clk 0:00:10]}
65... Bf4 {[%clk 0:00:11.2]} 66. b4+ {[%clk 0:00:10.4]} 66... axb4 {[%clk
0:00:11.2]} 67. c4 {[%clk 0:00:10.9]} 67... Kb6 {[%clk 0:00:09.2]} 68. Kb3
{[%clk 0:00:11]} 68... Bd6 {[%clk 0:00:09]} 69. Bg2 {[%clk 0:00:10.2]} 69... Ka5
{[%clk 0:00:09.2]} 70. Bd5 {[%clk 0:00:10.5]} 70... Bc5 {[%clk 0:00:09.3]} 71.
Bc6 {[%clk 0:00:10.9]} 71... Bd6 {[%clk 0:00:09.6]} 72. Bb5 {[%clk 0:00:11.4]}
72... Bc5 {[%clk 0:00:09.9]} 73. Kc2 {[%clk 0:00:12.1]} 73... Bd6 {[%clk
0:00:10.1]} 74. Kb3 {[%clk 0:00:13]} 74... Bc5 {[%clk 0:00:10.4]} 75. Kc2 {[%clk
0:00:13.7]} 75... Bd6 {[%clk 0:00:10.9]} 76. Kb3 {[%clk 0:00:14.6]} 1/2-1/2

[Event "Early-Titled-Tuesday-Blitz-February-27-2024"]
[Site "Chess.com"]
[Date "2024.02.27"]
[Round "8"]
[White "Andreikka"]
[Black "Polish_fighter3000"]
[Result "0-1"]
[WhiteElo "2955"]
[BlackElo "3084"]
[TimeControl "180+1"]
[EndTime "9:29:12 PST"]
[Termination "Polish_fighter3000 won on time"]

1. e4 {[%clk 0:03:00.9]} 1... c6 {[%clk 0:02:57.6]} 2. d4 {[%clk 0:02:58.2]}
2... d5 {[%clk 0:02:58.2]} 3. e5 {[%clk 0:02:56.1]} 3... Bf5 {[%clk 0:02:57.9]}
4. h4 {[%clk 0:02:56.4]} 4... h5 {[%clk 0:02:57.4]} 5. Bd3 {[%clk 0:02:53.5]}
5... Bxd3 {[%clk 0:02:56.9]} 6. Qxd3 {[%clk 0:02:53.2]} 6... Qa5+ {[%clk
0:02:56]} 7. Nd2 {[%clk 0:02:50.5]} 7... e6 {[%clk 0:02:50.5]} 8. Nf3 {[%clk
0:02:50.3]} 8... Nh6 {[%clk 0:02:48.1]} 9. O-O {[%clk 0:02:49.8]} 9... Nf5
{[%clk 0:02:47]} 10. Nb3 {[%clk 0:02:49.8]} 10... Qb5 {[%clk 0:02:44.7]} 11. Qc3
{[%clk 0:02:45.8]} 11... Bb4 {[%clk 0:02:41.8]} 12. Qd3 {[%clk 0:02:39.6]} 12...
Qxd3 {[%clk 0:02:41]} 13. cxd3 {[%clk 0:02:40.5]} 13... a5 {[%clk 0:02:38.9]}
14. a4 {[%clk 0:02:37]} 14... b6 {[%clk 0:02:28.9]} 15. Bg5 {[%clk 0:02:22.2]}
15... Na6 {[%clk 0:02:27.6]} 16. Rac1 {[%clk 0:02:19.9]} 16... Kd7 {[%clk
0:02:27.2]} 17. g3 {[%clk 0:02:16]} 17... Rhc8 {[%clk 0:02:06.5]} 18. Bd2 {[%clk
0:02:12.6]} 18... Bxd2 {[%clk 0:01:52.3]} 19. Nfxd2 {[%clk 0:02:13.4]} 19... Nb4
{[%clk 0:01:51.9]} 20. Rc3 {[%clk 0:02:13.3]} 20... f6 {[%clk 0:01:44.3]} 21.
Re1 {[%clk 0:02:12.3]} 21... g5 {[%clk 0:01:27.3]} 22. exf6 {[%clk 0:02:03.2]}
22... g4 {[%clk 0:01:27.8]} 23. Nc1 {[%clk 0:00:54.2]} 23... Nxd4 {[%clk
0:01:14.9]} 24. Ne2 {[%clk 0:00:53.9]} 24... e5 {[%clk 0:00:50.5]} 25. Nxd4
{[%clk 0:00:48.2]} 25... exd4 {[%clk 0:00:51.4]} 26. Re7+ {[%clk 0:00:48.8]}
26... Kd6 {[%clk 0:00:51.9]} 27. Rc1 {[%clk 0:00:49.4]} 27... Nxd3 {[%clk
0:00:48.6]} 28. Rd1 {[%clk 0:00:24.4]} 28... Re8 {[%clk 0:00:30.3]} 29. Rh7
{[%clk 0:00:20.5]} 29... Re2 {[%clk 0:00:29.1]} 30. Nb3 {[%clk 0:00:18.7]} 30...
Nxf2 {[%clk 0:00:25.1]} 31. Nxd4 {[%clk 0:00:18.7]} 31... Nxd1 {[%clk
0:00:13.1]} 32. Nxe2 {[%clk 0:00:18.6]} 32... Rf8 {[%clk 0:00:13.7]} 33. Rh6
{[%clk 0:00:16.6]} 33... Nxb2 {[%clk 0:00:07.5]} 34. Nf4 {[%clk 0:00:14.4]}
34... Nxa4 {[%clk 0:00:07.3]} 35. f7+ {[%clk 0:00:14.9]} 35... Kd7 {[%clk
0:00:02.3]} 36. Ng6 {[%clk 0:00:14.7]} 36... Rxf7 {[%clk 0:00:02.5]} 37. Ne5+
{[%clk 0:00:15.4]} 37... Ke7 {[%clk 0:00:02.8]} 38. Nxf7 {[%clk 0:00:16]} 38...
Kxf7 {[%clk 0:00:03.7]} 39. Rxc6 {[%clk 0:00:14.1]} 39... b5 {[%clk 0:00:03.9]}
40. Ra6 {[%clk 0:00:13.3]} 40... Nc3 {[%clk 0:00:02.6]} 41. Rxa5 {[%clk
0:00:12.6]} 41... Ke6 {[%clk 0:00:03.2]} 42. Kf2 {[%clk 0:00:12.5]} 42... d4
{[%clk 0:00:03.6]} 43. Ra6+ {[%clk 0:00:11.7]} 43... Kd5 {[%clk 0:00:03.8]} 44.
Rh6 {[%clk 0:00:12.3]} 44... b4 {[%clk 0:00:04.2]} 45. Rxh5+ {[%clk 0:00:12.6]}
45... Kc4 {[%clk 0:00:04.8]} 46. Rh8 {[%clk 0:00:13.1]} 46... b3 {[%clk
0:00:05.2]} 47. Rc8+ {[%clk 0:00:04.1]} 47... Kb4 {[%clk 0:00:04.9]} 48. Rb8+
{[%clk 0:00:04.5]} 48... Nb5 {[%clk 0:00:05]} 49. Re8 {[%clk 0:00:05]} 49... b2
{[%clk 0:00:03.9]} 50. Re1 {[%clk 0:00:05.7]} 50... d3 {[%clk 0:00:04.1]} 51.
Ke3 {[%clk 0:00:05.2]} 51... Kc3 {[%clk 0:00:04.4]} 52. h5 {[%clk 0:00:05.5]}
52... Na3 {[%clk 0:00:04.1]} 53. Rd1 {[%clk 0:00:04]} 53... b1=Q {[%clk
0:00:02.6]} 54. Rxb1 {[%clk 0:00:04.1]} 54... Nxb1 {[%clk 0:00:03.5]} 55. h6
{[%clk 0:00:04.8]} 55... d2 {[%clk 0:00:03.6]} 56. h7 {[%clk 0:00:05.4]} 56...
d1=Q {[%clk 0:00:04.1]} 57. h8=Q+ {[%clk 0:00:06.1]} 57... Kc2 {[%clk
0:00:03.7]} 58. Qh7+ {[%clk 0:00:05.8]} 58... Kc1 {[%clk 0:00:03.7]} 59. Qc7+
{[%clk 0:00:05.3]} 59... Kb2 {[%clk 0:00:03.9]} 60. Qb6+ {[%clk 0:00:05.1]}
60... Ka2 {[%clk 0:00:04.1]} 61. Qa6+ {[%clk 0:00:05]} 61... Na3 {[%clk
0:00:04.2]} 62. Qe6+ {[%clk 0:00:04.5]} 62... Kb2 {[%clk 0:00:04.2]} 63. Qe5+
{[%clk 0:00:04.7]} 63... Kb3 {[%clk 0:00:04.3]} 64. Kf4 {[%clk 0:00:03.4]} 64...
Nc4 {[%clk 0:00:03.4]} 65. Qe4 {[%clk 0:00:01.6]} 65... Kc3 {[%clk 0:00:03.6]}
66. Kg5 {[%clk 0:00:02]} 66... Qd2+ {[%clk 0:00:02.4]} 67. Kxg4 {[%clk
0:00:02.2]} 67... Qd7+ {[%clk 0:00:03]} 68. Kf4 {[%clk 0:00:02]} 68... Qd6+
{[%clk 0:00:03.1]} 69. Kf3 {[%clk 0:00:01.9]} 69... Nd2+ {[%clk 0:00:03.2]} 0-1

[Event "Early-Titled-Tuesday-Blitz-February-27-2024"]
[Site "Chess.com"]
[Date "2024.02.27"]
[Round "8"]
[White "DrCeltic"]
[Black "Slovineanu"]
[Result "0-1"]
[WhiteElo "2573"]
[BlackElo "2481"]
[TimeControl "180+1"]
[EndTime "9:29:23 PST"]
[Termination "Slovineanu won by resignation"]

1. e4 {[%clk 0:02:59.5]} 1... e6 {[%clk 0:03:00]} 2. d4 {[%clk 0:02:59.4]} 2...
d5 {[%clk 0:03:00.3]} 3. Nc3 {[%clk 0:03:00.3]} 3... Nf6 {[%clk 0:02:59.9]} 4.
Bg5 {[%clk 0:02:59.9]} 4... dxe4 {[%clk 0:02:59.5]} 5. Nxe4 {[%clk 0:03:00]}
5... Be7 {[%clk 0:03:00.1]} 6. Nxf6+ {[%clk 0:03:00.5]} 6... Bxf6 {[%clk
0:02:59.5]} 7. Bxf6 {[%clk 0:03:01]} 7... Qxf6 {[%clk 0:03:00]} 8. Qd3 {[%clk
0:03:01]} 8... Bd7 {[%clk 0:02:58.8]} 9. Nf3 {[%clk 0:02:58]} 9... Bc6 {[%clk
0:02:55.2]} 10. Ne5 {[%clk 0:02:58.3]} 10... O-O {[%clk 0:02:53.4]} 11. f3
{[%clk 0:02:52.3]} 11... Rd8 {[%clk 0:02:47.6]} 12. O-O-O {[%clk 0:02:49.9]}
12... Nd7 {[%clk 0:02:29.6]} 13. Nxc6 {[%clk 0:02:49.1]} 13... bxc6 {[%clk
0:02:29.6]} 14. Qe4 {[%clk 0:02:47.4]} 14... c5 {[%clk 0:02:21]} 15. Bd3 {[%clk
0:02:47]} 15... cxd4 {[%clk 0:02:03.8]} 16. Qxh7+ {[%clk 0:02:29.2]} 16... Kf8
{[%clk 0:02:03.5]} 17. Kb1 {[%clk 0:02:23.3]} 17... Nc5 {[%clk 0:01:59.8]} 18.
g4 {[%clk 0:02:13.3]} 18... Nxd3 {[%clk 0:01:23.2]} 19. Rxd3 {[%clk 0:02:12.6]}
19... Rab8 {[%clk 0:01:19]} 20. h4 {[%clk 0:02:03.2]} 20... c5 {[%clk
0:01:11.5]} 21. g5 {[%clk 0:01:48.2]} 21... Qg6 {[%clk 0:01:09.5]} 22. Qxg6
{[%clk 0:01:42.5]} 22... fxg6 {[%clk 0:01:09.9]} 23. Re1 {[%clk 0:01:33.7]}
23... Ke7 {[%clk 0:01:07.8]} 24. c3 {[%clk 0:01:30.7]} 24... Rd5 {[%clk
0:00:58.5]} 25. cxd4 {[%clk 0:01:13.9]} 25... cxd4 {[%clk 0:00:58.3]} 26. Rc1
{[%clk 0:01:00.8]} 26... Kd6 {[%clk 0:00:45.9]} 27. Rc4 {[%clk 0:00:52.1]} 27...
e5 {[%clk 0:00:36.8]} 28. Ra4 {[%clk 0:00:47.7]} 28... a5 {[%clk 0:00:36.5]} 29.
b3 {[%clk 0:00:39.3]} 29... Rh8 {[%clk 0:00:35.4]} 30. f4 {[%clk 0:00:34.8]}
30... Rxh4 {[%clk 0:00:34.5]} 31. fxe5+ {[%clk 0:00:32.2]} 31... Kxe5 {[%clk
0:00:34.8]} 32. b4 {[%clk 0:00:22.6]} 32... axb4 {[%clk 0:00:32]} 33. Rxb4
{[%clk 0:00:23.5]} 33... Ke4 {[%clk 0:00:29.2]} 34. Rd2 {[%clk 0:00:22.7]} 34...
Ke3 {[%clk 0:00:26]} 35. Rd1 {[%clk 0:00:17.2]} 35... Ke2 {[%clk 0:00:17.6]} 36.
Rg1 {[%clk 0:00:11.4]} 36... Rf4 {[%clk 0:00:14.4]} 37. Rb2+ {[%clk 0:00:10.4]}
37... Kd3 {[%clk 0:00:11.8]} 38. Re1 {[%clk 0:00:09.3]} 38... Rdf5 {[%clk
0:00:06.8]} 39. Rd1+ {[%clk 0:00:08.5]} 39... Kc4 {[%clk 0:00:06]} 40. Rc2+
{[%clk 0:00:08.5]} 40... Kd5 {[%clk 0:00:06.4]} 41. Rcd2 {[%clk 0:00:09]} 41...
Rxg5 {[%clk 0:00:04.8]} 42. Kb2 {[%clk 0:00:09.6]} 42... Re5 {[%clk 0:00:04.8]}
43. Kb3 {[%clk 0:00:08.6]} 43... Re3+ {[%clk 0:00:04.1]} 44. Kb4 {[%clk
0:00:09.1]} 44... d3+ {[%clk 0:00:04.5]} 45. Kb5 {[%clk 0:00:09.3]} 45... Ke4
{[%clk 0:00:04.6]} 46. a4 {[%clk 0:00:07.5]} 46... Rf5+ {[%clk 0:00:05]} 47. Kb4
{[%clk 0:00:07.6]} 47... Rf8 {[%clk 0:00:04.7]} 48. a5 {[%clk 0:00:07.7]} 48...
Rb8+ {[%clk 0:00:04.6]} 49. Ka4 {[%clk 0:00:08.2]} 49... Ra8 {[%clk 0:00:04.9]}
50. Kb5 {[%clk 0:00:08.4]} 50... Rb8+ {[%clk 0:00:05.1]} 51. Ka6 {[%clk
0:00:08.8]} 51... Rc8 {[%clk 0:00:05.7]} 52. Kb7 {[%clk 0:00:08.5]} 52... Rc2
{[%clk 0:00:06.2]} 53. a6 {[%clk 0:00:08.4]} 53... Rxd2 {[%clk 0:00:05.8]} 54.
Rxd2 {[%clk 0:00:09.3]} 54... Re2 {[%clk 0:00:06.4]} 55. Rd1 {[%clk 0:00:09.1]}
55... Rb2+ {[%clk 0:00:06.9]} 56. Kc6 {[%clk 0:00:08.9]} 56... Ra2 {[%clk
0:00:07.1]} 57. Kb7 {[%clk 0:00:09.4]} 57... Ke3 {[%clk 0:00:07.5]} 58. Re1+
{[%clk 0:00:10.1]} 58... Kd2 {[%clk 0:00:07.4]} 59. Re7 {[%clk 0:00:11]} 59...
Kc2 {[%clk 0:00:06.8]} 60. Rc7+ {[%clk 0:00:11.7]} 60... Kd1 {[%clk 0:00:06.9]}
61. a7 {[%clk 0:00:12.6]} 61... d2 {[%clk 0:00:06.6]} 62. Rxg7 {[%clk
0:00:12.2]} 62... Kc1 {[%clk 0:00:04.6]} 63. Rc7+ {[%clk 0:00:12.6]} 63... Rc2
{[%clk 0:00:04.8]} 64. Rxc2+ {[%clk 0:00:12.6]} 64... Kxc2 {[%clk 0:00:05]} 65.
a8=Q {[%clk 0:00:13.5]} 65... d1=Q {[%clk 0:00:05.5]} 66. Qh8 {[%clk 0:00:13.9]}
66... Qd5+ {[%clk 0:00:04.7]} 67. Kb6 {[%clk 0:00:13.7]} 67... Qe6+ {[%clk
0:00:04.7]} 68. Kc7 {[%clk 0:00:13.7]} 68... Kd3 {[%clk 0:00:05.1]} 69. Kd8
{[%clk 0:00:12.9]} 69... Ke4 {[%clk 0:00:05.2]} 70. Qh1+ {[%clk 0:00:12.3]}
70... Kf5 {[%clk 0:00:04.5]} 71. Qf3+ {[%clk 0:00:12.6]} 71... Ke5 {[%clk
0:00:04.2]} 72. Qe3+ {[%clk 0:00:12.6]} 72... Kf6 {[%clk 0:00:04.6]} 73. Qc3+
{[%clk 0:00:11.9]} 73... Qe5 {[%clk 0:00:03.6]} 74. Qh3 {[%clk 0:00:12.8]} 74...
g5 {[%clk 0:00:03.2]} 75. Kd7 {[%clk 0:00:12.8]} 75... Qf5+ {[%clk 0:00:02.8]}
76. Qxf5+ {[%clk 0:00:12.5]} 76... Kxf5 {[%clk 0:00:03.5]} 77. Kd6 {[%clk
0:00:13.1]} 77... g4 {[%clk 0:00:04.2]} 0-1

[Event "Early-Titled-Tuesday-Blitz-February-27-2024"]
[Site "Chess.com"]
[Date "2024.02.27"]
[Round "8"]
[White "DenLaz"]
[Black "1977Ivan"]
[Result "1-0"]
[WhiteElo "3021"]
[BlackElo "2737"]
[TimeControl "180+1"]
[EndTime "9:29:30 PST"]
[Termination "DenLaz won by checkmate"]

1. d4 {[%clk 0:03:00.9]} 1... Nf6 {[%clk 0:02:47.5]} 2. c4 {[%clk 0:03:01.2]}
2... d6 {[%clk 0:02:45.1]} 3. Nf3 {[%clk 0:03:01.2]} 3... Nc6 {[%clk 0:02:44]}
4. Nc3 {[%clk 0:03:00.6]} 4... e5 {[%clk 0:02:43.6]} 5. d5 {[%clk 0:03:00.6]}
5... Ne7 {[%clk 0:02:43]} 6. e4 {[%clk 0:02:59.1]} 6... Ng6 {[%clk 0:02:43.3]}
7. g3 {[%clk 0:02:51.6]} 7... Be7 {[%clk 0:02:42.2]} 8. h4 {[%clk 0:02:51.5]}
8... h6 {[%clk 0:02:35]} 9. Be2 {[%clk 0:02:51]} 9... c6 {[%clk 0:02:34.6]} 10.
h5 {[%clk 0:02:43.5]} 10... Nf8 {[%clk 0:02:33.6]} 11. c5 {[%clk 0:02:36]} 11...
N8h7 {[%clk 0:02:19.3]} 12. dxc6 {[%clk 0:02:31.6]} 12... bxc6 {[%clk
0:02:19.4]} 13. cxd6 {[%clk 0:02:24]} 13... Bxd6 {[%clk 0:02:20.3]} 14. Nh4
{[%clk 0:02:22.4]} 14... O-O {[%clk 0:02:19.9]} 15. Be3 {[%clk 0:02:23]} 15...
Be6 {[%clk 0:02:19.1]} 16. Qc2 {[%clk 0:02:18.3]} 16... Qe7 {[%clk 0:02:17.7]}
17. O-O {[%clk 0:02:15.9]} 17... Ng5 {[%clk 0:02:12.5]} 18. Rfd1 {[%clk
0:02:12.8]} 18... Rfd8 {[%clk 0:02:02.4]} 19. Nf5 {[%clk 0:02:04.1]} 19... Bxf5
{[%clk 0:02:00.6]} 20. exf5 {[%clk 0:02:05]} 20... e4 {[%clk 0:01:52.7]} 21. Kg2
{[%clk 0:02:02.6]} 21... Bc5 {[%clk 0:01:49.2]} 22. Qc1 {[%clk 0:01:07.4]} 22...
Bxe3 {[%clk 0:01:37.8]} 23. Qxe3 {[%clk 0:01:07.2]} 23... Qe5 {[%clk 0:01:37.4]}
24. Qf4 {[%clk 0:00:58.3]} 24... Qxf4 {[%clk 0:01:23.1]} 25. gxf4 {[%clk
0:00:59.2]} 25... Ngh7 {[%clk 0:01:23.5]} 26. Rxd8+ {[%clk 0:00:50.8]} 26...
Rxd8 {[%clk 0:01:24.4]} 27. Rd1 {[%clk 0:00:51]} 27... Rxd1 {[%clk 0:01:15]} 28.
Bxd1 {[%clk 0:00:51.2]} 28... Kf8 {[%clk 0:01:15.9]} 29. Kf1 {[%clk 0:00:28.9]}
29... Ke7 {[%clk 0:01:15.8]} 30. Ke1 {[%clk 0:00:29.4]} 30... Kd6 {[%clk
0:01:14.9]} 31. Kd2 {[%clk 0:00:29.9]} 31... Kc5 {[%clk 0:01:09.7]} 32. a3
{[%clk 0:00:26.6]} 32... Nf8 {[%clk 0:00:44.4]} 33. b4+ {[%clk 0:00:23.2]} 33...
Kc4 {[%clk 0:00:35]} 34. Kc2 {[%clk 0:00:20.4]} 34... N8d7 {[%clk 0:00:32.9]}
35. Be2+ {[%clk 0:00:19]} 35... Kd4 {[%clk 0:00:32.8]} 36. Bd1 {[%clk
0:00:04.9]} 36... Nd5 {[%clk 0:00:25.5]} 37. Ne2+ {[%clk 0:00:04.9]} 37... Kc4
{[%clk 0:00:25.8]} 38. Ng3 {[%clk 0:00:02.9]} 38... e3 {[%clk 0:00:23.9]} 39.
Be2+ {[%clk 0:00:02.8]} 39... Kd4 {[%clk 0:00:24.2]} 40. fxe3+ {[%clk 0:00:03]}
40... Nxe3+ {[%clk 0:00:23.6]} 41. Kd2 {[%clk 0:00:02.4]} 41... Nd5 {[%clk
0:00:23.3]} 42. Bf3 {[%clk 0:00:02.7]} 42... N7f6 {[%clk 0:00:22.9]} 43. Ne2+
{[%clk 0:00:02.8]} 43... Kc4 {[%clk 0:00:22.2]} 44. Kc2 {[%clk 0:00:02.5]} 44...
c5 {[%clk 0:00:20]} 45. bxc5 {[%clk 0:00:02.5]} 45... Kxc5 {[%clk 0:00:20.9]}
46. Kd3 {[%clk 0:00:03.1]} 46... Nb6 {[%clk 0:00:20.8]} 47. Nc3 {[%clk
0:00:02.9]} 47... Nfd5 {[%clk 0:00:19.4]} 48. Ne4+ {[%clk 0:00:03.1]} 48... Kc6
{[%clk 0:00:16.6]} 49. Nc3 {[%clk 0:00:03.3]} 49... Kd6 {[%clk 0:00:16.4]} 50.
Nb5+ {[%clk 0:00:03.2]} 50... Kc5 {[%clk 0:00:16.2]} 51. Nxa7 {[%clk 0:00:03.7]}
51... Nc4 {[%clk 0:00:13.1]} 52. Bxd5 {[%clk 0:00:02.7]} 52... Kxd5 {[%clk
0:00:14]} 53. Nb5 {[%clk 0:00:02.9]} 53... Nb6 {[%clk 0:00:12.2]} 54. Nc3+
{[%clk 0:00:02.3]} 54... Kc5 {[%clk 0:00:11.8]} 55. Ke4 {[%clk 0:00:02.9]} 55...
Nc4 {[%clk 0:00:11.3]} 56. a4 {[%clk 0:00:02.7]} 56... Nd2+ {[%clk 0:00:11.4]}
57. Kd3 {[%clk 0:00:03.1]} 57... Nc4 {[%clk 0:00:10.8]} 58. Ne4+ {[%clk
0:00:03.5]} 58... Kb4 {[%clk 0:00:11]} 59. f6 {[%clk 0:00:04.1]} 59... gxf6
{[%clk 0:00:10.1]} 60. Nxf6 {[%clk 0:00:05]} 60... Nd6 {[%clk 0:00:08.2]} 61.
Kd4 {[%clk 0:00:04]} 61... Nf5+ {[%clk 0:00:07.1]} 62. Ke5 {[%clk 0:00:04.6]}
62... Ng3 {[%clk 0:00:07.3]} 63. f5 {[%clk 0:00:02.3]} 63... Kxa4 {[%clk
0:00:07.2]} 64. Kf4 {[%clk 0:00:03]} 64... Ne2+ {[%clk 0:00:07.5]} 65. Kf3
{[%clk 0:00:03.5]} 65... Nd4+ {[%clk 0:00:07.6]} 66. Kg4 {[%clk 0:00:04.1]}
66... Kb5 {[%clk 0:00:06.9]} 67. Ng8 {[%clk 0:00:04.7]} 67... Kc6 {[%clk
0:00:06.4]} 68. Nxh6 {[%clk 0:00:05.4]} 68... Kd7 {[%clk 0:00:06.7]} 69. Nxf7
{[%clk 0:00:05.2]} 69... Ke7 {[%clk 0:00:07]} 70. Ng5 {[%clk 0:00:04.3]} 70...
Kf6 {[%clk 0:00:06.9]} 71. Ne4+ {[%clk 0:00:05]} 71... Ke5 {[%clk 0:00:06.2]}
72. Ng3 {[%clk 0:00:05.6]} 72... Kf6 {[%clk 0:00:04.8]} 73. h6 {[%clk
0:00:06.2]} 73... Nc6 {[%clk 0:00:04.7]} 74. Ne4+ {[%clk 0:00:06.3]} 74... Kf7
{[%clk 0:00:04.6]} 75. Kg5 {[%clk 0:00:06.8]} 75... Ne5 {[%clk 0:00:04.3]} 76.
Nd6+ {[%clk 0:00:07.3]} 76... Kg8 {[%clk 0:00:04.2]} 77. f6 {[%clk 0:00:06.8]}
77... Nd7 {[%clk 0:00:01.8]} 78. Kg6 {[%clk 0:00:03.8]} 78... Kh8 {[%clk
0:00:01.6]} 79. Nf7+ {[%clk 0:00:03.8]} 79... Kg8 {[%clk 0:00:01.9]} 80. h7+
{[%clk 0:00:04.7]} 80... Kf8 {[%clk 0:00:02.5]} 81. h8=Q# {[%clk 0:00:05.6]} 1-0